Cogmind - Beta 13 @@@ ROGUE MODE // 2024.04.09 @ 21:42:38 Player: desiring-machine Result: Destroyed by S-27 Virus with Autogun Performance ------------- Evolutions (4) 2000 Regions Visited (8) 1600 Robots Destroyed (53) 265 Value Destroyed (1418) 1418 Prototype IDs (0) 0 Alien Tech Used (0) 0 Bonus (500) 500 TOTAL SCORE: 5783 Bonus ------- Entered DSFs 500 Cogmind --------- Core Integrity 0/850 Matter 272/300 Energy 111/290 System Corruption 0% Temperature Cool (0) Movement Core (200) Ox3 Location -6/Extension Parts ------- > --- POWER (1) -------- Improved Deuterium Engine > --- PROPULSION (6) --- (None) > --- UTILITY (5) ------ Terrain Scan Processor > --- WEAPON (3) ------- (None) > --- INVENTORY (5) ---- Small Battery (100) Compact Matter Pod (0) Peak State ------------ > --- POWER ------------ Deuterium Engine > --- PROPULSION ------- Cesium-ion Thruster Cesium-ion Thruster Surge Thruster Surge Thruster Surge Thruster Surge Thruster > --- UTILITY ---------- Terrain Scan Processor Targeting Computer Reaction Control System Focal Shield Hacking Suite > --- WEAPON ----------- Thermic Laser Gauss Rifle > --- INVENTORY -------- Cesium-ion Thruster Small Battery Compact Matter Pod Plasma Cannon [Rating: 45] Favorites ----------- Power Light Ion Engine Engine Light Ion Engine Propulsion Improved Aluminum Leg Leg Improved Aluminum Leg Wheel Compact Wheel Flight Unit Surge Thruster Utility Small Storage Unit Device Reaction Control System Storage Small Storage Unit Processor Targeting Computer Hackware Hacking Suite Weapon Heavy Assault Rifle Energy Gun Thermic Laser Energy Cannon Heavy Particle Cannon Ballistic Gun Heavy Assault Rifle Launcher EMP Blaster Build | -11 -10 -10 -9 -8 -7 -7 -6 -6 ------- Run | Yrd Mat Min Mat Mat Fac DSF Fac Ext Slots Evolved 8 | . . . 2 2 2 . 2 . Power . | . . . . . . . . . Propulsion 4 | . . . 2 . 1 . 1 . Utility 3 | . . . . 1 1 . 1 . Weapon 1 | . . . . 1 . . . . Parts Attached 57 | 6 12 . 9 9 2 9 3 7 Power 7 | 1 2 . 1 1 . . . 2 Engine 7 | 1 2 . 1 1 . . . 2 Core . | . . . . . . . . . Reactor . | . . . . . . . . . Propulsion 23 | 2 4 . 5 5 1 4 1 1 Treads . | . . . . . . . . . Leg 10 | . 4 . 5 1 . . . . Wheel 2 | 2 . . . . . . . . Hover . | . . . . . . . . . Flight 11 | . . . . 4 1 4 1 1 Utility 7 | 1 1 . . 1 . 2 2 . Device 2 | . . . . . . 1 1 . Storage 2 | 1 . . . . . . 1 . Processor 2 | . 1 . . 1 . . . . Hackware 1 | . . . . . . 1 . . Protection . | . . . . . . . . . Artifact . | . . . . . . . . . Weapon 20 | 2 5 . 3 2 1 3 . 4 Energy Gun 1 | . . . . . . . . 1 Energy Cannon 3 | . . . . 1 . 1 . 1 Ballistic Gun 13 | 2 4 . 2 1 . 2 . 2 Ballistic Cannon . | . . . . . . . . . Launcher 3 | . 1 . 1 . 1 . . . Special Weapon . | . . . . . . . . . Impact Weapon . | . . . . . . . . . Slashing Weapon . | . . . . . . . . . Piercing Weapon . | . . . . . . . . . Special Melee Weapon . | . . . . . . . . . Unidentified Prototypes . | . . . . . . . . . Corrupted Parts 1 | . . . . 1 . . . . System Corruption 10 | . . . . 10 . . . . Parts Lost 27 | . 5 . 3 2 . . . 17 Power 5 | . 2 . 1 1 . . . 1 Propulsion 11 | . 1 . 2 1 . . . 7 Utility 4 | . . . . . . . . 4 Weapon 7 | . 2 . . . . . . 5 Highest Loss Streak 17 | . 3 . 2 2 . . . 17 To Critical Strikes . | . . . . . . . . . Average Slot Usage (%) 90 | . 88 100 96 86 . 85 86 68 Engine 10 | . 13 14 10 8 . 7 6 4 Leg 21 | . 16 28 41 18 . . . . Wheel 2 | . 10 . . . . . . . Flight 7 | . . . . 8 . 38 38 28 Device 1 | . . . . . . 2 11 9 Storage 10 | . 14 14 11 7 . . 1 . Processor 11 | . 6 14 11 18 . 15 13 12 Ballistic Gun 17 | . 25 14 17 16 . 12 6 5 Launcher 5 | . 1 14 4 5 . 5 . . Naked Turns . | . . . . . . . . . Heaviest Build 27 | 12 15 15 17 27 23 23 23 19 Greatest Support 52 | 32 32 26 52 38 25 25 22 22 Greatest Overweight (x) 8 | . 4 . . 8 . 1 1 3 Average Overweight (x) . | . . . . . . . . . Largest Inventory Capacity 8 | 8 8 8 8 8 5 5 5 5 Average Capacity 7 | 7 8 8 8 7 5 5 5 5 Most Carried 8 | 4 8 8 8 8 4 5 5 5 Average Carried 5 | 3 5 8 7 6 3 4 4 4 Final Capacity 8 | 8 8 8 8 5 5 5 5 5 Final Carried 8 | 4 8 8 8 5 3 5 5 2 Class Distribution -------------------- 76% | Mutant 8% | Scavenger-Sprinter 6% | Sprinter 5% | Gunner Dominant Class ---------------- Mutant | -10/Materials Mutant | -10/Mines Mutant | -9/Materials Gunner | -8/Materials Gunner | -7/Factory Sprinter | -7/DSF Scavenger-Sprinter | -6/Factory Scavenger-Sprinter | -6/Extension Resources | -11 -10 -10 -9 -8 -7 -7 -6 -6 ----------- Run | Yrd Mat Min Mat Mat Fac DSF Fac Ext Matter Collected 1481 | 326 274 132 368 190 . 35 . 156 Remotely . | . . . . . . . . . Salvage Created 1858 | 187 531 50 542 187 . 117 . 244 Parts 117 | 7 27 4 36 13 . 21 . 9 Haulers Intercepted . | . . . . . . . . . Recyclers Shooed 1 | . . . 1 . . . . . Parts Field Recycled . | . . . . . . . . . Retrieved Matter . | . . . . . . . . . Parts Self-Destructed . | . . . . . . . . . Prevented . | . . . . . . . . . Kills | -11 -10 -10 -9 -8 -7 -7 -6 -6 ------- Run | Yrd Mat Min Mat Mat Fac DSF Fac Ext Combat Hostiles Destroyed 44 | . 14 3 11 5 . 6 . 5 Guns 32 | . 14 1 9 1 . 4 . 3 Cannons 4 | . . . . 4 . . . . AOE 6 | . . 2 2 . . 2 . . Classes Destroyed 10 | 3 2 . 3 1 . 1 . . Worker 3 | 2 . . 1 . . . . . Tunneler 3 | 3 . . . . . . . . Recycler 1 | 1 . . . . . . . . Watcher 2 | . . . 1 1 . . . . Swarmer 12 | . 3 3 1 3 . . . 2 Cutter 6 | . . . . . . 6 . . Grunt 16 | . 11 . 5 . . . . . Brawler 1 | . . . 1 . . . . . Sentry 8 | . . . 4 1 . . . 3 Hunter 1 | . . . . 1 . . . . Best Kill Streak 4 | 4 4 3 3 3 . 3 . 4 Combat Bots Only 4 | . 4 3 3 3 . 3 . 4 Max Kills in Single Turn 3 | 1 2 3 1 1 . 2 . 1 Gunslinging 1 | . 1 . . . . . . . Exploded 2 | . . 2 1 . . 2 . . Melee . | . . . . . . . . . Uniques/NPCs Destroyed . | . . . . . . . . . Combat | -11 -10 -10 -9 -8 -7 -7 -6 -6 -------- Run | Yrd Mat Min Mat Mat Fac DSF Fac Ext Hostile Shots Fired 532 | . 69 6 71 27 . 11 . 348 Missed 178 | . 13 2 20 6 . 6 . 131 Damage Taken 3842 | . 685 56 725 344 . 215 . 1817 Core 1269 | . 156 . 96 110 . 49 . 858 Absorbed by Shields 9 | . . . . . . 9 . . Ignored by Resistances 137 | . . . . . . . . 137 Core Remaining (%) 77 | 100 . 37 76 80 . 93 . . Volleys Fired 148 | 11 50 2 37 14 . 7 . 27 Largest 3 | 2 2 2 2 3 . 3 . 2 Hottest 121 | 40 40 56 56 121 . 89 . 113 Shots Fired 293 | 22 97 4 73 38 . 21 . 38 Gun 261 | 22 97 2 67 24 . 14 . 35 Cannon 9 | . . . . 6 . . . 3 Launcher 23 | . . 2 6 8 . 7 . . Special . | . . . . . . . . . Kinetic 251 | 22 97 2 67 24 . 14 . 25 Thermal 19 | . . . . 6 . . . 13 Explosive . | . . . . . . . . . Electromagnetic 23 | . . 2 6 8 . 7 . . Robot Hit Streak 22 | 5 22 1 10 6 . 2 . 10 Robot Miss Streak 4 | 2 3 2 3 3 . 4 . 2 Penetration Max 1 | . . . . . . 1 . . Secondary Targets 5 | . 3 . 1 . . . . 1 Max Gunslinging Chain 1 | . 1 . 1 . . . . 1 Shots Hit Robots 199 | 15 75 1 51 20 . 7 . 30 Core Hits 86 | 7 28 3 21 9 . 9 . 9 Critical Kills 2 | . 1 . . . . . . 1 Critical Parts Destroyed 1 | . 1 . . . . . . . Critical Strikes 4 | . 2 . . . . . . 2 Burn 1 | . . . . . . . . 1 Destroy 3 | . 2 . . . . . . 1 Melee Attacks . | . . . . . . . . . Impact . | . . . . . . . . . Slashing . | . . . . . . . . . Piercing . | . . . . . . . . . Sneak Attacks . | . . . . . . . . . Combat Hostiles . | . . . . . . . . . Follow-up Attacks . | . . . . . . . . . Damage Inflicted 3453 | 184 901 100 921 409 . 354 . 584 Guns 2628 | 184 896 14 723 122 . 179 . 510 Cannons 199 | . . . . 125 . . . 74 Explosions 610 | . . 86 187 162 . 175 . . Melee . | . . . . . . . . . Ramming 16 | . 5 . 11 . . . . . Kinetic 2502 | 184 896 14 723 122 . 179 . 384 Thermal 413 | . . . . 125 . 88 . 200 Explosive . | . . . . . . . . . Electromagnetic 522 | . . 86 187 162 . 87 . . Impact . | . . . . . . . . . Slashing . | . . . . . . . . . Piercing . | . . . . . . . . . Highest Corruption 10 | . . 1 3 10 . . . . Average Corruption 2 | . . 1 1 10 . . . . Corruption Purged . | . . . . . . . . . Corruption Blocked . | . . . . . . . . . Effects 15 | . . 5 4 6 . . . . Message Errors 3 | . . . 2 1 . . . . Matter Fused 4 | . . 3 . 1 . . . . Heat Flow Errors 2 | . . . . 2 . . . . Energy Discharges 1 | . . . . 1 . . . . Data Loss (minor) 1 | . . . 1 . . . . . Data Loss (major) 2 | . . 1 1 . . . . . Misfires 1 | . . . . 1 . . . . Alerts 1 | . . 1 . . . . . . Overload Shots . | . . . . . . . . . Overflow Damage 2 | . . . . 2 . . . . Projectiles . | . . . . . . . . . Explosions 2 | . . . . 2 . . . . Melee . | . . . . . . . . . Knockbacks . | . . . . . . . . . Impact . | . . . . . . . . . Kinetic . | . . . . . . . . . Secondary . | . . . . . . . . . Self-Inflicted Damage 191 | . . 23 49 67 . 52 . . Shots 15 | . . 2 4 6 . 3 . . Rammed . | . . . . . . . . . Targets Rammed 9 | . 3 . 6 . . . . . Kicked 9 | . 3 . 6 . . . . . Crushed . | . . . . . . . . . Highest Temperature 555 | . 12 . 31 380 . . 100 555 Average Temperature 104 | . 6 . 10 120 . . 47 177 Received Heat Transfer 1134 | . 363 . 279 45 . . . 447 Effects 12 | . . . . 1 . . . 11 Shutdowns 2 | . . . . 1 . . . 1 Energy Bleed 1 | . . . . . . . . 1 Interference 3 | . . . . . . . . 3 Damage (minor) 1 | . . . . . . . . 1 Damage (major) 5 | . . . . . . . . 5 Siege Activations . | . . . . . . . . . Robots Corrupted . | . . . . . . . . . Combat Hostiles . | . . . . . . . . . Parts Fried 4 | . . 1 . 3 . . . . Impact Corruptions . | . . . . . . . . . Robots Melted 2 | . . . . . . . . 2 Combat Hostiles 2 | . . . . . . . . 2 Parts Melted 6 | . . . . . . . . 6 Heat Transferred 885 | . . . . 185 . 100 . 600 Parts Sabotaged . | . . . . . . . . . Parts Stolen . | . . . . . . . . . Parts Stripped . | . . . . . . . . . Power Chain Reactions 5 | . . 1 1 1 . 2 . . Alert | -11 -10 -10 -9 -8 -7 -7 -6 -6 ------- Run | Yrd Mat Min Mat Mat Fac DSF Fac Ext Peak Influence 395 | 30 395 190 368 251 114 224 150 213 Initial 117 | . 19 99 . 70 114 79 117 73 Average 151 | 15 198 145 172 126 114 155 127 134 Maximum Alert Level 1 | . 1 . 1 1 . 1 . 1 Low Security (%) 74 | 100 43 100 54 93 100 69 100 98 Level 1 25 | . 56 . 45 6 . 30 . 1 Level 2 . | . . . . . . . . . Level 3 . | . . . . . . . . . Level 4 . | . . . . . . . . . Level 5 . | . . . . . . . . . High Security . | . . . . . . . . . Max Security . | . . . . . . . . . Squads Dispatched 8 | . 4 . 1 . . 2 . 1 Investigation 1 | . 1 . . . . . . . Extermination . | . . . . . . . . . Reinforcement 7 | . 3 . 1 . . 2 . 1 Assault . | . . . . . . . . . Garrison . | . . . . . . . . . Intercept . | . . . . . . . . . Searches Triggered . | . . . . . . . . . Construction Impeded . | . . . . . . . . . Haulers Reinforced . | . . . . . . . . . Active Scanning Responses . | . . . . . . . . . Cargo Convoy Interrupts . | . . . . . . . . . Stealth | -11 -10 -10 -9 -8 -7 -7 -6 -6 --------- Run | Yrd Mat Min Mat Mat Fac DSF Fac Ext Distress Signals 6 | . 4 . . . . . . 2 Communications Jammed . | . . . . . . . . . Distress Signals . | . . . . . . . . . Times Spotted 79 | . 24 5 16 6 . 7 . 21 Peak Tracking Total 12 | . 8 3 6 3 . 3 . 12 Tactical Retreats 7 | . 4 . 1 . . . . 2 Traps | -11 -10 -10 -9 -8 -7 -7 -6 -6 ------- Run | Yrd Mat Min Mat Mat Fac DSF Fac Ext Traps Triggered 3 | . 1 . . . . 2 . . Indirectly . | . . . . . . . . . Trap Hack Attempts . | . . . . . . . . . Triggered . | . . . . . . . . . Disarmed . | . . . . . . . . . Reprogrammed . | . . . . . . . . . Reused . | . . . . . . . . . Traps Extracted . | . . . . . . . . . Installed . | . . . . . . . . . Triggered . | . . . . . . . . . Machines | -11 -10 -10 -9 -8 -7 -7 -6 -6 ---------- Run | Yrd Mat Min Mat Mat Fac DSF Fac Ext Machines Disabled 3 | . 1 . 1 1 . . . . Max in Single Turn 1 | . 1 . 1 1 . . . . Garrison Access 1 | . . . . . . . 1 . Machines Repaired . | . . . . . . . . . Machines Dismantled . | . . . . . . . . . Machines Sabotaged . | . . . . . . . . . Overloaded Fab Kills . | . . . . . . . . . Hacking | -11 -10 -10 -9 -8 -7 -7 -6 -6 --------- Run | Yrd Mat Min Mat Mat Fac DSF Fac Ext Machines Accessed 3 | . . . . . 1 . 2 . Terminals 2 | . . . . . 1 . 1 . Fabricators . | . . . . . . . . . Repair Stations . | . . . . . . . . . Recycling Units . | . . . . . . . . . Scanalyzers . | . . . . . . . . . Garrison Access 1 | . . . . . . . 1 . Total Hacks 4 | . . . . . 1 . 3 . Successful 4 | . . . . . 1 . 3 . Failed . | . . . . . . . . . Catastrophic . | . . . . . . . . . Database Lockouts . | . . . . . . . . . Manual . | . . . . . . . . . Terminals 3 | . . . . . 1 . 2 . Fabricators . | . . . . . . . . . Repair Stations . | . . . . . . . . . Recycling Units . | . . . . . . . . . Scanalyzers . | . . . . . . . . . Garrison Access 1 | . . . . . . . 1 . Terminal Hacks 3 | . . . . . 1 . 2 . Record 1 | . . . . . . . 1 . Open DSF 1 | . . . . . 1 . . . Locate Traps 1 | . . . . . . . 1 . Fabricator Hacks . | . . . . . . . . . Repair Station Hacks . | . . . . . . . . . Recycling Unit Hacks . | . . . . . . . . . Scanalyzer . | . . . . . . . . . Garrison Access Hacks 1 | . . . . . . . 1 . Seal Access 1 | . . . . . . . 1 . Unauthorized Hacks . | . . . . . . . . . Terminals . | . . . . . . . . . Fabricators . | . . . . . . . . . Repair Stations . | . . . . . . . . . Recycling Units . | . . . . . . . . . Scanalyzers . | . . . . . . . . . Garrison Access . | . . . . . . . . . Data Cores Recovered . | . . . . . . . . . Used . | . . . . . . . . . Hacking Detections . | . . . . . . . . . Full Trace Events . | . . . . . . . . . Feedback Events . | . . . . . . . . . Feedback Blocked . | . . . . . . . . . Robot Schematics Acquired . | . . . . . . . . . Robots Built . | . . . . . . . . . Authchips . | . . . . . . . . . Time . | . . . . . . . . . Total Robot Build Rating . | . . . . . . . . . Part Schematics Acquired . | . . . . . . . . . Parts Built . | . . . . . . . . . Authchips . | . . . . . . . . . Time . | . . . . . . . . . Total Part Build Rating . | . . . . . . . . . Parts Repaired . | . . . . . . . . . Time . | . . . . . . . . . Parts Recycled . | . . . . . . . . . Recycled Matter . | . . . . . . . . . Retrieved Matter . | . . . . . . . . . Retrieved Components . | . . . . . . . . . Parts Scanalyzed . | . . . . . . . . . Part Schematics Acquired . | . . . . . . . . . Parts Damaged . | . . . . . . . . . Bothacking | -11 -10 -10 -9 -8 -7 -7 -6 -6 ------------ Run | Yrd Mat Min Mat Mat Fac DSF Fac Ext Used RIF Installer . | . . . . . . . . . Robots Hacked . | . . . . . . . . . Non-combat . | . . . . . . . . . Combat . | . . . . . . . . . Robot Hacks Applied . | . . . . . . . . . Relay Couplers Released . | . . . . . . . . . Fabnet Peak Effective % . | . . . . . . . . . Robots Rewired . | . . . . . . . . . Allies Hacked . | . . . . . . . . . Hacks Repelled . | . . . . . . . . . Allies | -11 -10 -10 -9 -8 -7 -7 -6 -6 -------- Run | Yrd Mat Min Mat Mat Fac DSF Fac Ext Total Allies . | . . . . . . . . . Largest Group . | . . . . . . . . . Highest-Rated Group . | . . . . . . . . . Highest-Rated Ally . | . . . . . . . . . Total Orders . | . . . . . . . . . Ally Attacks . | . . . . . . . . . Total Damage . | . . . . . . . . . Kills . | . . . . . . . . . Allies Corrupted . | . . . . . . . . . Allies Melted . | . . . . . . . . . Intel | -11 -10 -10 -9 -8 -7 -7 -6 -6 ------- Run | Yrd Mat Min Mat Mat Fac DSF Fac Ext Robot Analysis Total . | . . . . . . . . . Derelict Logs Recovered 3 | . . 3 . . . . . . Drone Launches . | . . . . . . . . . Drone Recoveries . | . . . . . . . . . Exploration | -11 -10 -10 -9 -8 -7 -7 -6 -6 ------------- Run | Yrd Mat Min Mat Mat Fac DSF Fac Ext Turns Passed 2368 | 191 598 494 472 208 4 112 112 177 Spaces Moved 1793 | 116 345 368 252 168 6 128 182 228 Core 23 | 11 1 . . 1 . . . 10 Treads . | . . . . . . . . . Legs 900 | . 190 368 252 90 . . . . Wheels 259 | 105 154 . . . . . . . Hover . | . . . . . . . . . Flight 611 | . . . . 77 6 128 182 218 Fastest Speed 20 | 50 100 120 120 26 23 23 20 20 Average Speed 84 | 95 111 120 120 83 23 34 20 22 Slowest Speed 450 | 100 250 120 120 450 23 87 73 200 Overloaded Moves . | . . . . . . . . . Propulsion Burnouts . | . . . . . . . . . Robots Hopped 4 | . . . . 1 . . . 3 Cave-ins Triggered . | . . . . . . . . . Exploration Rate (%) 35 | 4 54 87 25 19 . 57 4 33 Regions Visited 8 Branch Regions 2 Pre-discovered Areas . | . . . . . . . . . Known Exits Taken 1 | . . . . . 1 . . . Unknown Exits Taken 6 | 1 1 1 1 1 . . 1 . Scrap Searched 1 | . . 1 . . . . . . Spaces Dug . | . . . . . . . . . Terrain Destroyed 15 | . . 6 1 3 . 5 . . Melee . | . . . . . . . . . Projectile 1 | . . . . 1 . . . . AOE 14 | . . 6 1 2 . 5 . . Terrain Rammed . | . . . . . . . . . Walls Destroyed . | . . . . . . . . . Machines Disabled . | . . . . . . . . . Actions | -11 -10 -10 -9 -8 -7 -7 -6 -6 --------- Run | Yrd Mat Min Mat Mat Fac DSF Fac Ext Total 2383 | 174 468 416 355 207 7 183 257 316 Wait 263 | 32 33 47 38 . . . 68 45 Move 1776 | 115 344 367 251 165 5 127 181 221 Hop 4 | . . . . 1 . . . 3 Pick Up 66 | 10 18 . 9 9 . 12 2 6 Fast Attach . | . . . . . . . . . Attach 46 | 6 11 . 4 8 2 5 3 7 Detach 2 | . . . . . . . 2 . Swap 11 | . 1 . 5 1 . 4 . . Drop 35 | . 8 . 5 9 . 9 1 3 Fire 148 | 11 50 2 37 14 . 7 . 27 Melee . | . . . . . . . . . Ram . | . . . . . . . . . Kick 9 | . 3 . 6 . . . . . Crush . | . . . . . . . . . Escape Stasis 20 | . . . . . . 19 . 1 Rewire 3 | . . . . . . . . 3 Trap . | . . . . . . . . . Miscellaneous . | . . . . . . . . . Route ------- -11/Scrapyard -10/Materials -10/Mines -9/Materials (discovered 2 exits: *Mat / Min) -8/Materials -7/Factory -7/DSF -6/Factory -6/Extension History --------- Turn | Location | Event 27 | -11/Scrapyard | Discovered new exit (range 14) 192 | -11/Scrapyard | Entered Materials 307 | -10/Materials | Build established: Mutant 629 | -10/Materials | Core integrity fell below 50% 685 | -10/Materials | Lost 3 parts (1p2w) 694 | -10/Materials | Discovered new exit (range 11) 790 | -10/Materials | Entered Mines 798 | -10/Mines | Met a Derelict bent on vengeance 971 | -10/Mines | Received a Rocket Launcher from a helpful Derelict 1037 | -10/Mines | Joined a pair of Derelicts in attacking an 0b10 outpost 1122 | -10/Mines | Learned Materials stockpile data 1238 | -10/Mines | Discovered new exit (range 13) 1261 | -10/Mines | Learned Materials interactive machine intel 1284 | -10/Mines | Entered Materials 1284 | -9/Materials | Evolved 2 slots: Propulsion x2 1285 | -9/Materials | Identified exit to Mines 1287 | -9/Materials | Loaded intel: 18 interactive machine locations 1719 | -9/Materials | Discovered new exit (range 11) 1756 | -9/Materials | Entered another Materials area 1756 | -8/Materials | Evolved 2 slots: Utility x1, Weapon x1 1852 | -8/Materials | System corruption reached 10% 1960 | -8/Materials | Discovered new exit (range 13) 1964 | -8/Materials | Entered Factory 1964 | -7/Factory | Evolved 2 slots: Propulsion x1, Utility x1 1968 | -7/Factory | Identified exit to DSF 1968 | -7/Factory | Entered DSF 1996 | -7/DSF | Additional patrols routed to DSF 2058 | -7/DSF | Discovered new exit (range 15) 2080 | -7/DSF | Entered Factory 2080 | -6/Factory | Evolved 2 slots: Propulsion x1, Utility x1 2125 | -6/Factory | Discovered new exit (range 16) 2192 | -6/Factory | Entered Extension 2283 | -6/Extension | Spotted B-75 Beast 2339 | -6/Extension | Core integrity fell below 50% 2355 | -6/Extension | Core integrity fell below 20% 2369 | -6/Extension | Destroyed by S-27 Virus with Autogun Last Messages --------------- damaged (-4). 02337_ Overheating: Targeting Computer damaged (-2). 02337_ Attempting to rewire EX-432(g). 02340_ Acquired Battle Rifle. 02347_ S-27 Virus destroyed. 02351_ Battle Rifle destroyed. 02353_ Acquired Autogun. 02354_ Targeting Computer destroyed. 02356_ R-10 Processor collects Lgt. Nuclear Core. 02359_ S-27 Virus destroyed. 02362_ Y-54 Guardian suffers critical hit (Destroy). 02362_ Y-54 Guardian destroyed. 02365_ R-10 Processor collects Lgt. Treads. 02365_ Acquired 90 matter. 02366_ Acquired Imp. Deuterium Engine. 02366_ Autogun destroyed. 02367_ R-10 Processor collects Imp. Heat Sink. Map ----- +----------------------------------------------------+ | | | | | | | | | | | | | | | | | | | | | | | | | | | | | | | | | | | | | | | | | ?????????????????????????????????????????????????? | | ?????????????????????????????????????????????????? | | ?????????????????????????????????????????????????? | | ????????????????????????########?????????????????? | | #########################=s #?????????????????? | | R s@! #?????????????????? | | ### lg #?????????????????? | | #?# Rgg #?????????????????? | | " " #?# #?????????????????? | | ########### "" "" #?# Y #?????????????????? | | #??????# "" "" #####/####?????????????????? | | #??????# "" "" Y #?????????????????? | | # #??????# "" "" #?????????????????? | | ##+##??????# "" "" h% #?????????????????? | | ? ???????# "" "" #?????????????????? | | ?= ??????? " " #?????????????????? | | ?????? ###### #?????????????????? | | / ?????? #????# #?????????????????? | | = ???? #????# #?????????????????? | | [ ????###############????# #?????????????????? | | #######??????????????????????# #?????????????????? | | ?????????????????????????????# #?????????????????? | | ?????????????????????????????# #?????????????????? | | ?????????????????????????????# #?????????????????? | | ?????????????????????????????# #?????????????????? | | ?????????????????????????????# #?????????????????? | | ?????????????????????????????# #?????????????????? | | ?????????????????????????????# #?????????????????? | | ?????????????????????????????# #?????????????????? | | ?????????????????????????????# #?????????????????? | +----------------------------------------------------+ Best States ------------- Heat Dissipation 37 Energy Generation 14 Energy Capacity 275 Matter Stores 300 Matter Capacity 400 Sight Range 16 Terrain Scan Density 85 Resistance: KI 20 Evasion (%) 74 Targeting Accuracy 5 Offensive Hacking 10 Item Schematics ----------------- None Robot Schematics ------------------ None Fabricated ------------ Nothing Alien Tech Used ----------------- None Achievements -------------- Can't Catch Me Challenges ------------ None Game ------ Seed PulseHeavyWell Manual? 0 Play Time 00:33:46 Cumulative 6.8 hours Start 2024.04.09 @ 21:12:12 End 2024.04.09 @ 21:42:38 Sessions 1 Manual Loads 0 Difficulty Rogue Special Mode None Game No. 12 Rogue 12 Adventurer 0 Explorer 0 Win Type - Total 0 Types 0/0/0/0/0/0/0/0/0 Lore% 9 Gallery% 13 Achievement% 13 Wizard Run 0 Options --------- Layout 1 ASCII 0 Keyboard 0 Movement Numpad Keybinds 0 Fullscreen 1 Font 24/Smallcaps Map View 50x35 Zoom Use 0% Tactical HUD 1 Map Filters NONE Filters NONE Steam 0 RUN: 824a6c93-c15c-49d7-ad9a-ca4c45ea60ff